fUSD/lending_fUSD_20260322
["ID","MTS","AMOUNT","RATE_DAILY","PERIOD"]
[408719730,1774169441684,-964.56,0.00013016,2]
[408719731,1774169441696,-1000.0,0.00013021,2]
[408719732,1774169441709,-504.04980998,0.00013021,2]
[408719733,1774169441722,-379.18468401,0.00013121,2]
[408719734,1774169441734,-256.86603976,0.0001329,2]
[408719735,1774169441746,-964.56,0.0001329,2]
[408719736,1774169441759,-3240.0,0.00013425,2]
[408719737,1774169441771,-255.0,0.00013448,2]
[408719738,1774169441785,-237.6846,0.000135,2]
[408719739,1774169441797,-200.0,0.00013558,2]
[408719740,1774169441809,-964.56,0.00013564,2]
[408719741,1774169441822,-420.0,0.00013564,2]
[408719742,1774169441834,-1680.0,0.00013597,2]
[408719743,1774169441846,-250.0,0.00013598,2]
[408719744,1774169441858,-300.0,0.00013605,2]
[408719745,1774169441870,-193.0,0.00013605,2]
[408719746,1774169441882,-5000.0,0.00013605,2]
[408719747,1774169441895,-500.0,0.00013698,2]
[408719748,1774169441908,-500.0,0.00013698,2]
[408719749,1774169441919,-571.85993226,0.00013698,2]
[408719750,1774169441931,-500.0,0.00013698,2]
[408719751,1774169441943,-500.0,0.00013698,2]
[408719752,1774169441954,-500.0,0.00013698,2]
[408719753,1774169441967,-500.0,0.00013698,2]
[408719754,1774169441979,-500.0,0.00013698,2]
[408719755,1774169441991,-500.0,0.00013698,2]
[408719756,1774169442003,-500.0,0.00013698,2]
[408719757,1774169442014,-521.23273696,0.00013698,2]
[408719758,1774169442026,-500.0,0.00013698,2]
[408719759,1774169442038,-500.0,0.00013698,2]
[408719760,1774169442051,-500.0,0.00013698,2]
[408719761,1774169442063,-500.0,0.00013698,2]
[408719762,1774169442076,-500.0,0.00013698,2]
[408719763,1774169442089,-500.0,0.00013698,2]
[408719764,1774169442100,-500.0,0.00013698,2]
[408719765,1774169442112,-500.0,0.00013698,2]
[408719766,1774169442125,-500.0,0.00013698,2]
[408719767,1774169442137,-500.0,0.00013698,2]
[408719768,1774169442149,-500.0,0.00013698,2]
[408719769,1774169442161,-500.0,0.00013698,2]
[408719770,1774169442172,-500.0,0.00013698,2]
[408719771,1774169442184,-500.0,0.00013698,2]
[408719772,1774169442196,-500.0,0.00013698,2]
[408719773,1774169442208,-194.24175417,0.00013698,2]
[408719774,1774169442221,-500.0,0.00013698,2]
[408719775,1774169442232,-500.0,0.00013698,2]
[408719776,1774169442248,-500.0,0.00013698,2]
[408719777,1774169442260,-500.0,0.00013698,2]
[408719778,1774169442272,-500.0,0.00013698,2]
[408719779,1774169442284,-500.0,0.00013698,2]
[408719780,1774169442296,-500.0,0.00013699,2]
[408719781,1774169442307,-500.0,0.00013699,2]
[408719782,1774169442319,-500.0,0.00013699,2]
[408719783,1774169442331,-500.44177829,0.00013699,2]
[408719784,1774169442342,-500.0,0.00013699,2]
[408719785,1774169442354,-1964.23,0.000137,2]
[408719786,1774169442366,-821.34,0.000137,2]
[408719787,1774169442378,-982.53,0.000137,2]
[408719788,1774169442389,-1165.19,0.000137,2]
[408719789,1774169442401,-991.51,0.000137,2]
[408719790,1774169442413,-12374.6921712,0.00013748,2]
[408719791,1774169442424,-500.0,0.00013767,2]
[408719792,1774169442436,-347.47666717,0.00013767,2]
[408719793,1774169442448,-252.1,0.000138,2]
[408719794,1774169442460,-964.56,0.00013838,2]
[408719795,1774169442472,-13385.20140101,0.00013846,2]
[408719796,1774169442484,-170.61,0.0001393,2]
[408719797,1774169442498,-500.0,0.00013945,2]
[408719798,1774169442511,-521.0,0.00014,2]
[408719799,1774169442523,-523.0,0.00014,2]
[408719800,1774169442534,-186.40036,0.00014002,2]
[408719801,1774169442543,-278.11,0.00014026,2]
[408719802,1774169442553,-200.0,0.00014106,2]
[408719803,1774169442563,-964.56,0.00014112,2]
[408719804,1774169442572,-1000.0,0.00014247,2]
[408719805,1774169442582,-1000.0,0.00014247,2]
[408719810,1774169442592,-1000.0,0.00014247,2]
[408719813,1774169442861,-1000.0,0.00014315,2]
[408719815,1774169442876,-964.63612025,0.00014386,2]
[408719817,1774169442885,-170.84,0.00014389,2]
[408719818,1774169442895,-500.70382414,0.00014459,2]
[408719819,1774169442904,-500.4848322,0.00014459,2]
[408719820,1774169442913,-500.0,0.00014459,2]
[408719821,1774169442923,-500.43058459,0.00014459,2]
[408719822,1774169442932,-500.0,0.00014459,2]
[408719823,1774169442942,-500.74920901,0.00014459,2]
[408719824,1774169442951,-1000.0,0.00014493,2]
[408719825,1774169442961,-698.79,0.000145,2]
[408719826,1774169442971,-500.0,0.00014582,2]
[408719827,1774169442983,-433.0,0.00014635,2]
[408719828,1774169442993,-200.0,0.00014654,2]
[408719829,1774169443003,-500.0,0.00014728,2]
[408719830,1774169443013,-500.55967201,0.00014728,2]
[408719831,1774169443023,-500.0,0.00014728,2]
[408719832,1774169443032,-500.0,0.00014728,2]
[408719833,1774169443041,-500.0,0.00014728,2]
[408719834,1774169443051,-500.0,0.00014728,2]
[408719835,1774169443061,-500.0,0.00014728,2]
[408719836,1774169443070,-500.0,0.00014728,2]
[408719837,1774169443080,-390.12270077,0.00014728,2]
[408719838,1774169443090,-2000.0,0.00014772,2]
[408719839,1774169443101,-1073.03260881,0.00014795,2]
[408719840,1774169443111,-1500.0,0.00014863,2]
[408719841,1774169443120,-587.0,0.00014885,2]
[408719842,1774169443129,-180.378181,0.00014901,7]
[408719843,1774169443139,-170.61,0.00014925,2]
[408719844,1774169443148,-2351.0,0.00014956,2]
[408719845,1774169443157,-1000.0,0.00015007,2]
[408719846,1774169443166,-1000.0,0.00015007,2]
[408719847,1774169443175,-759.99072283,0.00015041,2]
[408719848,1774169443185,-268.67,0.00015068,2]
[408719849,1774169443194,-12374.6921712,0.0001513,2]
[408719850,1774169443205,-1001.53007131,0.0001513,2]
[408719852,1774169443215,-211.43898215,0.00015202,2]
[408719853,1774169443225,-10000.0,0.00015205,2]
[408719854,1774169443234,-501.4021552,0.00015276,2]
[408719855,1774169443244,-1000.0,0.00015276,2]
[408719856,1774169443253,-713.64434561,0.00015276,2]
[408719857,1774169443263,-500.67270798,0.00015276,2]
[408719858,1774169443273,-655.4067427,0.00015276,2]
[408719859,1774169443282,-1000.0,0.00015276,2]
[408719860,1774169443292,-13385.20140101,0.0001543,2]
[408719861,1774169443302,-1500.0,0.00015555,2]
[408719862,1774169443311,-278.525163,0.00015682,7]
[408719863,1774169443321,-222.68518983,0.00015824,2]
[408719864,1774169443332,-1500.0,0.00015824,2]
[408719865,1774169443342,-2684.23,0.00015883,2]
[408719866,1774169443351,-170.61,0.00015919,2]
[408719867,1774169443361,-736.0,0.00015921,2]
[408719868,1774169443370,-3974.71,0.00016002,2]
[408719870,1774169443380,-725.0,0.00016113,2]
[408719872,1774169443389,-9999.99,0.00016116,2]
[408719875,1774169443399,-725.0,0.00016173,2]
[408719876,1774169443408,-725.0,0.00016213,2]
[408719877,1774169443418,-164.665911,0.00016234,7]
[408719879,1774169443427,-725.0,0.00016322,2]
[408719880,1774169443437,-725.0,0.00016329,2]
[408719881,1774169443446,-250.0,0.00016334,2]
[408719882,1774169443456,-823.0,0.00016335,2]
[408719883,1774169443466,-268.67,0.00016438,2]
[408719884,1774169443475,-3292.0,0.00016452,2]
[408719885,1774169443493,-780.0,0.0001646,2]
[408719886,1774169443506,-725.0,0.00016463,2]
[408719887,1774169443518,-12374.6921712,0.00016511,2]
[408719888,1774169443529,-725.0,0.00016515,2]
[408719889,1774169443538,-725.0,0.00016532,2]
[408719890,1774169443549,-725.0,0.0001657,2]
[408719891,1774169443559,-2000.0,0.00016618,2]
[408719892,1774169443568,-725.0,0.00016694,2]
[408719893,1774169443578,-160.0,0.00016735,2]
[408719894,1774169443588,-160.0,0.00016735,2]
[408719895,1774169443598,-979.16666667,0.00016735,2]
[408719896,1774169443607,-725.0,0.0001678,2]
[408719897,1774169443617,-1165.19,0.000168,2]
[408719898,1774169443627,-991.51,0.000168,2]
[408719899,1774169443636,-725.0,0.00016808,2]
[408719900,1774169443646,-725.0,0.00016849,2]
[408719901,1774169443656,-725.0,0.00016902,2]
[408719902,1774169443666,-170.61,0.00016914,2]
[408719903,1774169443675,-725.0,0.00016944,2]
[408719904,1774169443685,-1195.23419118,0.00017,30]
[408719905,1774169443695,-13385.20140101,0.00017015,2]
[408719906,1774169443705,-725.0,0.00017048,2]
[408719907,1774169443714,-725.0,0.00017161,2]
[408719908,1774169443729,-725.0,0.00017175,2]
[408719909,1774169443738,-725.0,0.00017185,2]
[408719910,1774169443748,-2403.0,0.0001721,2]
[408719911,1774169443759,-725.0,0.00017218,2]
[408719912,1774169443769,-725.0,0.00017269,2]
[408719913,1774169443778,-1252.0,0.00017317,2]
[408719914,1774169443789,-725.0,0.0001741,2]
[408719915,1774169443801,-2403.0,0.0001746,2]
[408719916,1774169443811,-725.0,0.00017517,2]
[408719917,1774169443820,-725.0,0.00017611,2]
[408719918,1774169443830,-725.0,0.00017663,2]
[408719919,1774169443840,-225.472726,0.00017882,7]
[408719920,1774169443849,-189.90352,0.00017882,7]
[408719921,1774169443860,-12374.6921712,0.00017893,2]
[408719922,1774169443869,-170.61,0.00017909,2]
[408719923,1774169443879,-1152.0,0.00017925,2]
[408719924,1774169443889,-4609.0,0.00018097,2]
[408719925,1774169443899,-155.939,0.000183,2]
[408719926,1774169443909,-2000.0,0.00018464,2]
[408719927,1774169443919,-2129.0,0.0001885,2]
[408719928,1774169443929,-154.38343801,0.00018943,2]
[408719929,1774169443939,-982.53,0.000191,2]
[408719930,1774169443949,-150.4393191,0.00019178,2]
[408719931,1774169443958,-37118.03,0.000192,2]
[408719932,1774169443968,-12374.6921712,0.00019274,2]
[408719933,1774169443978,-1613.0,0.00019671,2]
[408719934,1774169443988,-6453.0,0.00019907,2]
[408719935,1774169443998,-200.0,0.0002,10]
[408719936,1774169444009,-300.0,0.000201,10]
[408719937,1774169444020,-821.34,0.000202,2]
[408719938,1774169444029,-2000.0,0.00020311,2]
[408719939,1774169444043,-442.75,0.00020429,2]
[408719940,1774169444053,-1964.23,0.000205,2]
[408719941,1774169444063,-1165.19,0.000205,2]
[408719942,1774169444073,-991.51,0.000205,2]
[408719943,1774169444083,-150.0,0.00020562,2]
[408719944,1774169444093,-776.61029799,0.00020562,2]
[408719945,1774169444103,-150.0,0.00020562,2]
[408719946,1774169444113,-482.20073194,0.00020562,2]
[408719947,1774169444124,-278.11,0.00020597,2]
[408719948,1774169444135,-12374.6921712,0.00020656,2]
[408719949,1774169444145,-1235.79759681,0.00020823,32]
[408719950,1774169444155,-594.0,0.00020848,10]
[408719951,1774169444165,-472.0,0.00020848,10]
[408719952,1774169444175,-164.89346,0.00020862,7]
[408719953,1774169444185,-2258.0,0.00021586,2]
[408719954,1774169444194,-319.13654821,0.00021838,40]
[408719955,1774169444204,-6697.0,0.00021898,2]
[408719956,1774169444214,-1000.0,0.00021918,2]
[408719957,1774169444223,-1000.0,0.00021918,2]
[408719958,1774169444233,-1000.0,0.00021918,2]
[408719959,1774169444243,-1000.0,0.00021918,2]
[408719960,1774169444252,-1000.0,0.00021918,2]
[408719961,1774169444262,-1000.0,0.00021918,2]
[408719962,1774169444271,-924.80475936,0.00022,2]
[408719963,1774169444281,-245.0,0.00022,2]
[408719964,1774169444290,-414.26,0.00022,30]
[408719965,1774169444300,-12374.6921712,0.00022037,2]
[408719966,1774169444310,-2000.0,0.00022157,2]
[408719967,1774169444319,-439.0,0.00022164,2]
[408719968,1774169444329,-270.567271,0.00022352,14]
[408719969,1774169444339,-227.884224,0.00022352,14]
[408719970,1774169444348,-245.0,0.00023,2]
[408719971,1774169444358,-171.81,0.00023044,14]
[408719972,1774169444367,-2403.0,0.00023085,3]
[408719973,1774169444378,-308.47240642,0.00023216,2]
[408719974,1774169444388,-12374.6921712,0.00023419,2]
[408719975,1774169444397,-3162.0,0.00023688,2]
[408719976,1774169444408,-245.0,0.00024,2]
[408719977,1774169444418,-162.1133,0.000243,2]
[408719978,1774169444428,-379.98,0.00024322,2]
[408719979,1774169444437,-1418.5,0.00024322,2]
[408719980,1774169444447,-1223.53,0.00024322,2]
[408719981,1774169444457,-37118.03,0.000245,7]
[408719982,1774169444466,-979.16666667,0.000245,7]
[408719983,1774169444475,-160.0,0.000245,7]
[408719984,1774169444485,-235.90430258,0.0002463,2]
[408719985,1774169444494,-1000.0,0.00024658,2]
[408719986,1774169444504,-150.0,0.00024658,2]
[408719987,1774169444514,-500.0,0.00024712,2]
[408719988,1774169444523,-12374.6921712,0.000248,2]
[408719989,1774169444533,-1345.0,0.00024952,2]
[408719990,1774169444543,-3514.0,0.00024952,2]
[408719991,1774169444552,-1044.0,0.00024952,2]
[408719992,1774169444562,-150.0,0.00024952,2]
[408719993,1774169444572,-1261.0,0.00024952,2]
[408719994,1774169444582,-200.0,0.00024952,2]
[408719995,1774169444591,-416.351,0.00024952,2]
[408719996,1774169444601,-150.0,0.00024952,2]
[408719997,1774169444611,-150.097,0.00024952,2]
[408719998,1774169444620,-150.147,0.00024952,2]
[408719999,1774169444630,-3760.0,0.00024952,2]
[408720000,1774169444640,-252.1,0.00025,7]
[408720001,1774169444650,-521.0,0.00025,11]
[408720002,1774169444660,-245.0,0.00025,2]
[408720003,1774169444670,-278.11,0.00025504,2]
[408720004,1774169444680,-150.0,0.000256,30]
[408720005,1774169444690,-982.53,0.000256,7]
[408720006,1774169444700,-150.0,0.0002589,2]
[408720007,1774169444710,-821.34,0.000259,7]
[408720008,1774169444721,-3929.0,0.00025995,2]
[408720009,1774169444732,-245.0,0.00026,2]
[408720010,1774169444742,-414.26,0.00026191,30]
[408720011,1774169444751,-1165.19,0.000262,7]
[408720012,1774169444760,-991.51,0.000262,7]
[408720013,1774169444771,-331.23,0.0002643,2]
[408720014,1774169444781,-1013.21,0.0002643,2]
[408720015,1774169444790,-873.95,0.0002643,2]
[408720016,1774169444801,-1964.23,0.000265,2]
[408720017,1774169444810,-4971.2115827,0.0002662,2]
[408720018,1774169444819,-453817.0599807,0.0002662,2]
[408720019,1774169444828,-13113.7481813,0.0002662,2]
[408720020,1774169444838,-164.89346,0.00026822,14]
[408720021,1774169444848,-400.0,0.000269,9]
[408720022,1774169444857,-800.0,0.00026986,120]
[408720023,1774169444867,-800.0,0.00026986,120]
[408720024,1774169444877,-800.0,0.00026986,120]
[408720025,1774169444886,-261.4,0.00027,2]
[408720026,1774169444896,-150.0,0.00027185,2]
[408720027,1774169444906,-500.0,0.00027387,120]
[408720028,1774169444916,-522.97,0.00027397,2]
[408720029,1774169444925,-25089.79,0.00027397,10]
[408720030,1774169444935,-20908.16,0.00027397,10]
[408720031,1774169444944,-2403.0,0.00027447,3]
[408720032,1774169444954,-200.0,0.00027447,2]
[408720033,1774169444963,-3714.26,0.00027447,2]
[408720034,1774169444976,-37118.03,0.000278,7]
[408720035,1774169444986,-1345.0,0.00027952,2]
[408720036,1774169444996,-3514.0,0.00027952,2]
[408720037,1774169445006,-1044.0,0.00027952,2]
[408720038,1774169445016,-986.372,0.00027952,2]
[408720039,1774169445026,-150.0,0.00027952,2]
[408720040,1774169445036,-150.0,0.00027952,2]
[408720041,1774169445046,-150.0,0.00027952,2]
[408720042,1774169445056,-150.0,0.00027952,2]
[408720043,1774169445065,-415.0,0.00027952,2]
[408720044,1774169445075,-3760.0,0.00027952,2]
[408720045,1774169445084,-202.985,0.00027955,30]
[408720046,1774169445094,-908.46,0.00027972,2]
[408720047,1774169445104,-979.16666667,0.00028,7]
[408720048,1774169445113,-150.0,0.000282,30]
[408720049,1774169445123,-154.38343801,0.00028414,2]
[408720050,1774169445133,-202.985,0.00028503,30]
[408720051,1774169445143,-150.0,0.00028544,2]
[408720052,1774169445152,-202.985,0.0002905,30]
[408720053,1774169445161,-239.0,0.00029475,3]
[408720054,1774169445174,-4536.43938649,0.00029637,2]
[408720055,1774169445184,-982.53,0.000299,7]
[408720056,1774169445194,-150.0,0.00029971,2]
[408720057,1774169445205,-362.72905046,0.0003,30]
[408720058,1774169445215,-821.34,0.0003,7]
[408720059,1774169445225,-500.0,0.00030101,120]
[408720060,1774169445234,-1000.0,0.00030183,2]
[408720061,1774169445243,-1165.19,0.000302,7]
[408720062,1774169445253,-991.51,0.000302,7]
[408720063,1774169445263,-168.532,0.000303,2]
[408720064,1774169445273,-1568.0,0.00030333,3]
[408720065,1774169445282,-414.26,0.00030381,60]
[408720066,1774169445292,-183.5,0.00030411,120]
[408720067,1774169445301,-202.985,0.0003042,30]
[408720068,1774169445311,-222.60723059,0.000308,30]
[408720069,1774169445321,-2000.0,0.00030809,2]
[408720070,1774169445331,-2000.0,0.00030809,2]
[408720071,1774169445341,-2000.0,0.00030809,2]
[408720072,1774169445351,-2000.0,0.00030809,2]
[408720073,1774169445364,-2000.0,0.00030809,2]
[408720074,1774169445374,-2000.0,0.00030809,2]
[408720075,1774169445384,-2000.0,0.00030809,2]
[408720076,1774169445393,-2000.0,0.00030809,2]
[408720077,1774169445403,-2000.0,0.00030809,2]
[408720078,1774169445413,-2000.0,0.00030809,2]
[408720079,1774169445422,-3514.0,0.00030952,2]
[408720080,1774169445432,-1044.0,0.00030952,2]
[408720081,1774169445441,-150.0,0.00030952,2]
[408720082,1774169445450,-150.0,0.00030952,2]
[408720083,1774169445460,-150.0,0.00030952,2]
[408720084,1774169445469,-415.0,0.00030952,2]
[408720085,1774169445478,-3760.0,0.00030952,2]
[408720086,1774169445487,-185.41,0.00031058,2]
[408720087,1774169445496,-337.06663496,0.00031176,76]
[408720088,1774169445505,-37118.03,0.000314,7]
[408720089,1774169445516,-1109.2272365,0.00031429,2]
[408720090,1774169445525,-101260.2732716,0.00031429,2]
[408720091,1774169445535,-150.0,0.0003147,2]
[408720092,1774169445544,-2926.0727318,0.00031488,2]
[408720093,1774169445557,-908.46,0.00031693,2]
[408720094,1774169445566,-185.41,0.00031705,2]
[408720095,1774169445576,-400.0,0.000319,11]
[408720096,1774169445585,-178.31188988,0.0003199,2]
[408720097,1774169445595,-277.15195125,0.00031999,10]
[408720098,1774169445604,-2468335.24157002,0.00032,120]
[408720099,1774169445911,-463.17396815,0.00024952,2]
[408720104,1774169446422,-648.92043422,0.00024952,2]
[408720105,1774169446866,-13385.20140101,0.00018599,2]
[408720106,1774169446876,-355.44743508,0.00024952,2]
[408720107,1774169446887,-4540.45816255,0.00024952,2]
[408720108,1774169446897,-5859.04183755,0.00027952,2]
[408720109,1774169621568,300.0,0.000115,4]
[408720110,1774169623410,600.0,0.000116,4]
[408720111,1774169625608,900.0,0.000117,4]
[408720112,1774169627685,1200.0,0.000118,4]
[408720113,1774169629785,1500.0,0.000119,4]
[408720114,1774169699176,150.0,0.00011922,2]
[408720115,1774169818843,3688.1,0.0001166,2]
[408720116,1774169906131,150.0,0.00016,120]
[408720117,1774169915634,150.0,0.00011576,2]
[408720118,1774169921644,156.0,6.423e-05,2]
[408720119,1774169922173,156.0,6.423e-05,2]
[408720120,1774169924964,192.58860367,0.00011888,2]
[408720121,1774169950305,166.66,0.00010959,2]
[408720122,1774169950500,166.66,0.00011188,2]
[408720123,1774169950684,166.66,0.00011417,2]
[408720124,1774169950893,166.66,0.00011646,2]
[408720125,1774169951085,166.66,0.00011876,2]
[408720126,1774169956615,1856.82,0.00011482,2]
[408720127,1774169965640,997.0,0.00011927,2]
[408720128,1774170003425,150.0,0.00011986,14]
[408720129,1774170031360,150.0,0.00011357,2]
[408720130,1774170031534,150.0,0.00011357,120]
[408720131,1774170052199,1600.0,0.00011357,2]
[408720132,1774170073621,-5041.63234419,0.0001193,2]
[408720133,1774170073643,-250.0,0.00011942,2]
[408720134,1774170073670,-5000.0,0.00011954,2]
[408720135,1774170073707,-250.0,0.00011962,2]
[408720136,1774170082625,-5000.0,0.00011972,2]
[408720137,1774170082825,-4502.76404657,0.00011972,2]
[408720138,1774170082853,-300.0,0.00011977,2]
[408720139,1774170082881,-117.48190686,0.00011978,2]
[408720140,1774170082998,-159.51809314,0.00011978,2]
[408720141,1774170083030,-2315.8684064,0.00011978,2]
[408720142,1774170083060,-500.0,0.00011978,2]
[408720143,1774170083089,-500.0,0.00011978,2]
[408720144,1774170083118,-500.0,0.00011978,2]
[408720145,1774170083146,-500.0,0.00011978,2]
[408720146,1774170083174,-476.06020844,0.00011978,2]
[408720147,1774170083342,-1886.19,0.00011987,2]
[408720148,1774170083369,-192.58860366,0.00012062,2]
[408720149,1774170083397,-300.0,0.00012087,2]
[408720150,1774170083426,-1200.0,0.00012087,2]
[408720151,1774170083455,-300.0,0.00012087,2]
[408720152,1774170083485,-166.66,0.00012105,2]
[408720153,1774170083513,-150.0,0.0001216,2]
[408720154,1774170083614,-2500.0,0.00012161,2]
[408720155,1774170084099,-622.92239982,0.00012161,2]
[408720156,1774170084123,-10000.01,0.00012161,2]
[408720157,1774170085542,-10000.01,0.00012161,2]
[408720158,1774170085580,-10000.01,0.00012161,2]
[408720159,1774170085610,-4137.51715648,0.00012161,2]
[408720160,1774170085632,-1724.97568704,0.00012161,2]
[408720161,1774170091233,190.37,0.00016,120]
[408720162,1774170092365,3791.968,0.00012062,2]
[408720163,1774170092550,258.465,0.00012062,2]
[408720164,1774170092586,185.25,0.00012033,2]
[408720165,1774170096460,244.26433695,0.00012162,2]
[408720166,1774170100988,500.0,0.00012155,2]
[408720167,1774170103049,500.0,0.00012102,2]
[408720168,1774170103843,500.0,0.0001211,2]
[408720169,1774170105164,500.0,0.00012109,2]
[408720170,1774170105564,500.0,0.00012129,2]
[408720171,1774170121492,300.0,0.00012161,2]
[408720172,1774170133018,3246.94,0.00011507,2]
[408720173,1774170156563,1857.49656676,0.00011972,2]
[408720174,1774170181501,300.0,0.00012161,2]
[408720175,1774170182391,150.0,0.00012161,2]
[408720176,1774170182426,241.0,0.00012161,2]
[408720177,1774170207997,9309.01,0.00012062,2]
[408720178,1774170269729,-9473.13266305,0.00012062,2]
[408720179,1774170275937,-10000.01,0.00012062,2]
[408720180,1774170366889,166.66,0.00011589,2]
[408720181,1774170367219,166.66,0.00011972,2]
[408720182,1774170369662,272.55108905,0.00011251,2]
[408720183,1774170452855,-3864.69891095,0.00011251,2]
[408720184,1774170452883,-1070.6121781,0.00012061,2]
[408720185,1774170452924,-129.3878219,0.00012061,2]
[408720186,1774170458999,-150.0,0.00012061,2]
[408720187,1774170459028,-300.0,0.00012061,2]
[408720188,1774170459084,-9100.01,0.00012062,2]
[408720189,1774170557135,-300.0,0.00011961,2]
[408720190,1774170557156,-1915.03649781,0.00011961,2]
[408720191,1774170557177,-150.0,0.00011961,2]
[408720192,1774170557198,-1549.29004493,0.00011962,2]
[408720193,1774170607228,5881.42,0.00011225,2]
[408720195,1774170631872,-696.74071713,0.00011952,2]
[408720196,1774170631881,-1200.0,0.0001196,2]
[408720197,1774170631891,-1682.29738627,0.00011961,2]
[408720198,1774170631903,-691.33519246,0.00011961,2]
[408720199,1774170631929,-14036.52366989,0.00011961,2]
[408720200,1774170631938,-363.80815196,0.00011961,2]
[408720201,1774170631948,-277.0,0.00011961,2]
[408720202,1774170631958,-4536.4393865,0.00011961,2]
[408720203,1774170631967,-6057.47613721,0.00011961,2]
[408720204,1774170631977,-351.55160827,0.00011961,2]
[408720205,1774170631986,-30900.29267461,0.00011962,2]
[408720206,1774170631996,-3500.157875,0.00011962,2]
[408720207,1774170632011,-2154864.33813816,0.00011962,2]
[408720208,1774170632040,-1167.89339535,0.00011962,2]
[408720209,1774170632051,-1306.980303,0.00011962,2]
[408720233,1774170638030,-306711.04756895,0.00011962,2]
[408720234,1774170638039,-696.74071713,0.00012051,2]
[408720235,1774170638049,-1492094.50411027,0.00012061,2]
[408720236,1774170638086,-7905.49588973,0.00012061,2]
[408720237,1774170638096,-250.0,0.00012061,2]
[408720238,1774170638106,-22104.77093695,0.00012062,2]
[408720239,1774170638120,-6762.1846,0.00012062,2]
[408720240,1774170638129,-500.0,0.00012062,2]
[408720241,1774170638138,-501.8813764,0.00012073,2]
[408720242,1774170638148,-501.8557586,0.00012073,2]
[408720243,1774170638159,-500.0,0.00012073,2]
[408720244,1774170638169,-500.0,0.00012073,2]
[408720245,1774170638182,-1000.0,0.00012161,2]
[408720246,1774170638192,-8722.84573346,0.00012161,2]
[408720247,1774170638212,-2638.15312271,0.00012161,2]
[408720248,1774170638223,-1132.68254729,0.00012161,2]
[408720255,1774170640310,-20343.21931551,0.00012161,2]
[408720256,1774170640320,-180.98160878,0.00012161,2]
[408720257,1774170640329,-6870.76262778,0.00012161,2]
[408720258,1774170640339,-1066.3172519,0.00012162,2]
[408720259,1774170640348,-500.0,0.00012163,2]
[408720260,1774170640357,-500.0,0.00012167,2]
[408720261,1774170640367,-500.0,0.00012168,2]
[408720262,1774170640376,-169.36164524,0.00012173,2]
[408720263,1774170640385,-500.0,0.00012173,2]
[408720264,1774170640395,-548.08832153,0.00012173,2]
[408720265,1774170640404,-500.0,0.00012173,2]
[408720266,1774170640413,-503.47525148,0.00012173,2]
[408720267,1774170640422,-500.0,0.00012173,2]
[408720268,1774170640431,-549.96757564,0.00012173,2]
[408720269,1774170640441,-500.0,0.00012173,2]
[408720270,1774170640450,-500.98668583,0.00012173,2]
[408720271,1774170640460,-500.0,0.00012173,2]
[408720272,1774170640469,-501.88886191,0.00012173,2]
[408720273,1774170640479,-500.0,0.00012173,2]
[408720274,1774170640489,-500.0,0.00012173,2]
[408720275,1774170640499,-500.0,0.00012173,2]
[408720276,1774170640509,-500.0,0.00012193,2]
[408720277,1774170640518,-999.99,0.00012193,2]